[Event "Open NK Rapid 2025"]
[Site "Helmond, Netherlands"]
[Date "2025.05.03"]
[Round "1.1"]
[White "Bok, Benjamin"]
[Black "Van Happen, Niels"]
[Result "1-0"]
[TimeControl "15+5"]
[WhiteFideId "1017063"]
[BlackFideId "40101100"]
[WhiteElo "2583"]
[BlackElo "1782"]

1. c4 {[%clk 00:15:08]} {[%emt 00:00:02]} g6 {[%clk 00:15:07]} {[%emt
00:00:03]} 2. d4 {[%clk 00:15:06]} {[%emt 00:00:08]} Nf6 {[%clk 00:15:07]}
{[%emt 00:00:04]} 3. g3 {[%clk 00:15:07]} {[%emt 00:00:04]} c6 {[%clk
00:15:07]} {[%emt 00:00:05]} 4. Nf3 {[%clk 00:15:05]} {[%emt 00:00:06]} Bg7
{[%clk 00:15:03]} {[%emt 00:00:09]} 5. Bg2 {[%clk 00:15:05]} {[%emt 00:00:04]}
d5 {[%clk 00:15:04]} {[%emt 00:00:05]} 6. O-O {[%clk 00:14:47]} {[%emt
00:00:24]} O-O {[%clk 00:15:04]} {[%emt 00:00:05]} 7. b3 {[%clk 00:14:50]}
{[%emt 00:00:03]} a5 {[%clk 00:14:19]} {[%emt 00:00:48]} 8. Nc3 {[%clk
00:14:52]} {[%emt 00:00:04]} Na6 {[%clk 00:11:15]} {[%emt 00:03:09]} 9. Bb2
{[%clk 00:14:44]} {[%emt 00:00:13]} Bg4 {[%clk 00:09:16]} {[%emt 00:02:04]} 10.
Ne5 {[%clk 00:14:38]} {[%emt 00:00:12]} Be6 {[%clk 00:08:27]} {[%emt 00:00:53]}
11. Rc1 {[%clk 00:14:29]} {[%emt 00:00:14]} Rc8 {[%clk 00:07:39]} {[%emt
00:00:53]} 12. e3 {[%clk 00:14:29]} {[%emt 00:00:05]} Nc7 {[%clk 00:05:37]}
{[%emt 00:02:07]} 13. Na4 {[%clk 00:14:28]} {[%emt 00:00:06]} Nd7 {[%clk
00:04:00]} {[%emt 00:01:42]} 14. Nxd7 {[%clk 00:14:14]} {[%emt 00:00:19]} Bxd7
{[%clk 00:03:44]} {[%emt 00:00:21]} 15. Nb6 {[%clk 00:14:17]} {[%emt 00:00:02]}
Bf5 {[%clk 00:02:15]} {[%emt 00:01:34]} 16. Nxc8 {[%clk 00:14:17]} {[%emt
00:00:05]} Qxc8 {[%clk 00:02:18]} {[%emt 00:00:02]} 17. cxd5 {[%clk 00:14:15]}
{[%emt 00:00:07]} cxd5 {[%clk 00:01:40]} {[%emt 00:00:43]} 18. Bxd5 {[%clk
00:14:18]} {[%emt 00:00:02]} Bh3 {[%clk 00:01:44]} {[%emt 00:00:01]} 19. Bg2
{[%clk 00:14:19]} {[%emt 00:00:04]} Bxg2 {[%clk 00:01:16]} {[%emt 00:00:33]} 20.
Kxg2 {[%clk 00:14:23]} {[%emt 00:00:02]} Qd7 {[%clk 00:01:16]} {[%emt
00:00:04]} 21. Qf3 {[%clk 00:14:26]} {[%emt 00:00:02]} Ne6 {[%clk 00:01:00]}
{[%emt 00:00:22]} 22. h4 {[%clk 00:14:29]} {[%emt 00:00:01]} f5 {[%clk
00:00:18]} {[%emt 00:00:47]} 23. Rfd1 {[%clk 00:14:28]} {[%emt 00:00:06]} f4
{[%clk 00:00:10]} {[%emt 00:00:13]} 24. exf4 {[%clk 00:14:28]} {[%emt
00:00:05]} h5 {[%clk 00:00:07]} {[%emt 00:00:09]} 25. Rc2 {[%clk 00:14:21]}
{[%emt 00:00:12]} Nxd4 {[%clk 00:00:07]} {[%emt 00:00:06]} 26. Bxd4 {[%clk
00:14:23]} {[%emt 00:00:02]} Bxd4 {[%clk 00:00:10]} {[%emt 00:00:02]} 27. Qe4
{[%clk 00:14:23]} {[%emt 00:00:04]} 1-0

[Event "Open NK Rapid 2025"]
[Site "Helmond, Netherlands"]
[Date "2025.05.03"]
[Round "1.2"]
[White "Seth, Aakrit"]
[Black "Fridman, Daniel"]
[Result "0-1"]
[TimeControl "15+5"]
[WhiteFideId "34604812"]
[BlackFideId "11600454"]
[WhiteElo "1780"]
[BlackElo "2539"]

1. d4 {[%clk 00:15:09]} e6 {[%clk 00:15:06]} {[%emt 00:00:04]} 2. Bf4 {[%clk
00:15:12]} {[%emt 00:00:02]} c5 {[%clk 00:15:08]} {[%emt 00:00:02]} 3. e3
{[%clk 00:15:12]} {[%emt 00:00:06]} Qb6 {[%clk 00:15:10]} {[%emt 00:00:03]} 4.
b3 {[%clk 00:15:09]} {[%emt 00:00:09]} Nc6 {[%clk 00:15:12]} {[%emt 00:00:03]}
5. Nf3 {[%clk 00:15:07]} {[%emt 00:00:06]} Nf6 {[%clk 00:15:15]} {[%emt
00:00:02]} 6. h3 {[%clk 00:14:48]} {[%emt 00:00:25]} Nd5 {[%clk 00:15:18]}
{[%emt 00:00:02]} 7. Bg3 {[%clk 00:14:48]} {[%emt 00:00:04]} cxd4 {[%clk
00:15:21]} {[%emt 00:00:02]} 8. exd4 {[%clk 00:14:42]} {[%emt 00:00:11]} Bb4+
{[%clk 00:15:24]} {[%emt 00:00:02]} 9. Nbd2 {[%clk 00:13:58]} {[%emt 00:00:49]}
Nxd4 {[%clk 00:15:27]} {[%emt 00:00:02]} 10. a3 {[%clk 00:13:41]} {[%emt
00:00:23]} Nxf3+ {[%clk 00:15:22]} {[%emt 00:00:10]} 11. gxf3 {[%clk 00:13:18]}
{[%emt 00:00:27]} Bc3 {[%clk 00:15:24]} {[%emt 00:00:03]} 12. Rb1 {[%clk
00:13:16]} {[%emt 00:00:06]} Qd4 {[%clk 00:14:05]} {[%emt 00:01:24]} 13. Bd3
{[%clk 00:13:10]} {[%emt 00:00:11]} Nf4 {[%clk 00:13:41]} {[%emt 00:00:30]} 14.
Be4 {[%clk 00:12:34]} {[%emt 00:00:42]} Nh5 {[%clk 00:13:32]} {[%emt 00:00:14]}
15. Bh2 {[%clk 00:12:08]} {[%emt 00:00:30]} d5 {[%clk 00:13:35]} {[%emt
00:00:03]} 16. Bd3 {[%clk 00:12:08]} {[%emt 00:00:05]} Bd7 {[%clk 00:13:28]}
{[%emt 00:00:12]} 17. Qe2 {[%clk 00:11:58]} {[%emt 00:00:14]} Nf4 {[%clk
00:13:30]} {[%emt 00:00:04]} 18. Bxf4 {[%clk 00:12:01]} {[%emt 00:00:02]} Qxf4
{[%clk 00:13:33]} {[%emt 00:00:02]} 19. Rg1 {[%clk 00:11:34]} {[%emt 00:00:31]}
O-O {[%clk 00:13:16]} {[%emt 00:00:22]} 20. Bxh7+ {[%clk 00:11:05]} {[%emt
00:00:34]} Kh8 {[%clk 00:13:00]} {[%emt 00:00:21]} 21. Bd3 {[%clk 00:11:08]}
{[%emt 00:00:03]} e5 {[%clk 00:12:58]} {[%emt 00:00:06]} 22. Qe3 {[%clk
00:10:52]} {[%emt 00:00:21]} Rfe8 {[%clk 00:13:00]} {[%emt 00:00:04]} 23. Kd1
{[%clk 00:06:16]} {[%emt 00:04:41]} Bd4 {[%clk 00:12:30]} {[%emt 00:00:35]} 24.
Qe2 {[%clk 00:05:16]} {[%emt 00:01:05]} Qh4 {[%clk 00:12:12]} {[%emt 00:00:22]}
25. Qf1 {[%clk 00:04:11]} {[%emt 00:01:10]} Bxf2 {[%clk 00:11:42]} {[%emt
00:00:35]} 26. Rh1 {[%clk 00:02:56]} {[%emt 00:01:20]} e4 {[%clk 00:11:37]}
{[%emt 00:00:10]} 27. fxe4 {[%clk 00:02:45]} {[%emt 00:00:17]} dxe4 {[%clk
00:11:40]} {[%emt 00:00:01]} 28. Nxe4 {[%clk 00:02:39]} {[%emt 00:00:12]} Rxe4
{[%clk 00:11:42]} {[%emt 00:00:02]} 29. Bxe4 {[%clk 00:02:22]} {[%emt
00:00:22]} Qxe4 {[%clk 00:11:45]} {[%emt 00:00:02]} 30. Rh2 {[%clk 00:01:56]}
{[%emt 00:00:19]} Qd4+ {[%clk 00:10:29]} {[%emt 00:01:33]} 31. Qd3 {[%clk
00:02:00]} {[%emt 00:00:02]} Qf4 {[%clk 00:10:29]} {[%emt 00:00:04]} 32. Rxf2
{[%clk 00:01:41]} {[%emt 00:00:24]} Qxf2 {[%clk 00:10:31]} {[%emt 00:00:03]} 33.
Qxd7 {[%clk 00:01:37]} {[%emt 00:00:09]} Qf1+ {[%clk 00:10:33]} {[%emt
00:00:02]} 34. Kd2 {[%clk 00:01:42]} Qxb1 {[%clk 00:10:35]} {[%emt 00:00:03]}
35. Qxb7 {[%clk 00:01:41]} {[%emt 00:00:07]} Rd8+ {[%clk 00:10:38]} {[%emt
00:00:02]} 36. Kc3 {[%clk 00:01:43]} {[%emt 00:00:03]} Qa1+ {[%clk 00:10:41]}
{[%emt 00:00:03]} 37. Kb4 {[%clk 00:01:38]} {[%emt 00:00:10]} Qd4+ {[%clk
00:10:43]} {[%emt 00:00:02]} 38. c4 {[%clk 00:01:41]} {[%emt 00:00:02]} Qd6+
{[%clk 00:10:43]} {[%emt 00:00:04]} 39. Ka4 {[%clk 00:01:19]} {[%emt 00:00:28]}
Rb8 {[%clk 00:10:38]} {[%emt 00:00:10]} 40. Qxa7 {[%clk 00:00:53]} {[%emt
00:00:30]} Qc6+ {[%clk 00:10:41]} {[%emt 00:00:02]} 41. Ka5 {[%clk 00:00:53]}
{[%emt 00:00:06]} Ra8 {[%clk 00:10:44]} {[%emt 00:00:02]} 42. Qxa8+ {[%clk
00:00:51]} {[%emt 00:00:08]} Qxa8+ {[%clk 00:10:47]} {[%emt 00:00:02]} 43. Kb4
{[%clk 00:00:54]} {[%emt 00:00:01]} f5 {[%clk 00:10:49]} {[%emt 00:00:03]} 44.
c5 {[%clk 00:00:57]} {[%emt 00:00:02]} f4 {[%clk 00:10:52]} {[%emt 00:00:02]}
45. a4 {[%clk 00:01:01]} f3 {[%clk 00:10:55]} {[%emt 00:00:01]} 0-1

[Event "Open NK Rapid 2025"]
[Site "Helmond, Netherlands"]
[Date "2025.05.03"]
[Round "1.3"]
[White "Warmerdam, Max"]
[Black "Van Boxel, Tamara"]
[Result "1-0"]
[TimeControl "15+5"]
[WhiteFideId "1048104"]
[BlackFideId "1078747"]
[WhiteElo "2517"]
[BlackElo "1780"]

1. Nf3 {[%clk 00:15:07]} {[%emt 00:00:02]} Nc6 {[%clk 00:15:08]} {[%emt
00:00:02]} 2. c4 {[%clk 00:15:06]} {[%emt 00:00:06]} e6 {[%clk 00:15:08]}
{[%emt 00:00:05]} 3. d4 {[%clk 00:14:59]} {[%emt 00:00:12]} b6 {[%clk
00:15:09]} {[%emt 00:00:05]} 4. e4 {[%clk 00:14:56]} {[%emt 00:00:07]} Bb7
{[%clk 00:15:12]} {[%emt 00:00:02]} 5. d5 {[%clk 00:14:29]} {[%emt 00:00:32]}
exd5 {[%clk 00:15:03]} {[%emt 00:00:14]} 6. cxd5 {[%clk 00:14:30]} {[%emt
00:00:04]} Nb8 {[%clk 00:14:54]} {[%emt 00:00:14]} 7. Bc4 {[%clk 00:14:25]}
{[%emt 00:00:10]} Bc5 {[%clk 00:14:56]} {[%emt 00:00:03]} 8. O-O {[%clk
00:14:24]} {[%emt 00:00:05]} d6 {[%clk 00:15:00]} {[%emt 00:00:02]} 9. e5
{[%clk 00:13:44]} {[%emt 00:00:44]} Ne7 {[%clk 00:14:06]} {[%emt 00:01:00]} 10.
Nc3 {[%clk 00:13:44]} {[%emt 00:00:05]} O-O {[%clk 00:13:56]} {[%emt 00:00:15]}
11. Re1 {[%clk 00:13:32]} {[%emt 00:00:17]} dxe5 {[%clk 00:13:59]} {[%emt
00:00:02]} 12. Nxe5 {[%clk 00:13:26]} {[%emt 00:00:12]} Bd6 {[%clk 00:13:59]}
{[%emt 00:00:04]} 13. Bf4 {[%clk 00:12:23]} {[%emt 00:01:08]} Nd7 {[%clk
00:13:37]} {[%emt 00:00:27]} 14. Qd4 {[%clk 00:11:24]} {[%emt 00:01:04]} Nf6
{[%clk 00:11:48]} {[%emt 00:01:53]} 15. Bg5 {[%clk 00:10:49]} {[%emt 00:00:41]}
Bc5 {[%clk 00:11:28]} {[%emt 00:00:25]} 16. Qh4 {[%clk 00:10:17]} {[%emt
00:00:36]} Nf5 {[%clk 00:08:42]} {[%emt 00:02:51]} 17. Qf4 {[%clk 00:10:07]}
{[%emt 00:00:15]} Nd4 {[%clk 00:08:26]} {[%emt 00:00:22]} 18. Ng4 {[%clk
00:09:45]} {[%emt 00:00:27]} Qd6 {[%clk 00:07:35]} {[%emt 00:00:56]} 19. Qxd6
{[%clk 00:08:54]} {[%emt 00:00:55]} cxd6 {[%clk 00:07:35]} {[%emt 00:00:06]} 20.
Nxf6+ {[%clk 00:08:36]} {[%emt 00:00:23]} gxf6 {[%clk 00:07:38]} {[%emt
00:00:02]} 21. Bxf6 {[%clk 00:08:38]} {[%emt 00:00:03]} Nc2 {[%clk 00:07:42]}
{[%emt 00:00:01]} 22. Re4 {[%clk 00:08:40]} {[%emt 00:00:03]} h5 {[%clk
00:07:16]} {[%emt 00:00:31]} 23. Rc1 {[%clk 00:08:40]} {[%emt 00:00:04]} Nb4
{[%clk 00:06:56]} {[%emt 00:00:26]} 24. a3 {[%clk 00:08:42]} {[%emt 00:00:04]}
Na6 {[%clk 00:06:47]} {[%emt 00:00:13]} 25. Rh4 {[%clk 00:08:38]} {[%emt
00:00:08]} Kh7 {[%clk 00:06:43]} {[%emt 00:00:10]} 26. Bd3+ {[%clk 00:08:41]}
{[%emt 00:00:01]} Kh6 {[%clk 00:06:45]} {[%emt 00:00:04]} 27. g4 {[%clk
00:08:44]} {[%emt 00:00:01]} Rg8 {[%clk 00:06:48]} {[%emt 00:00:03]} 28. Rxh5#
{[%clk 00:08:47]} {[%emt 00:00:02]} 1-0

[Event "Open NK Rapid 2025"]
[Site "Helmond, Netherlands"]
[Date "2025.05.03"]
[Round "1.4"]
[White "Gergin, Isafara"]
[Black "Peng, Li Min"]
[Result "0-1"]
[TimeControl "15+5"]
[WhiteFideId "1082167"]
[BlackFideId "14112620"]
[WhiteElo "1779"]
[BlackElo "2510"]

1. e4 {[%clk 00:15:09]} g6 {[%clk 00:14:52]} {[%emt 00:00:18]} 2. d4 {[%clk
00:15:11]} {[%emt 00:00:03]} Bg7 {[%clk 00:14:55]} {[%emt 00:00:02]} 3. Nc3
{[%clk 00:15:13]} {[%emt 00:00:03]} d6 {[%clk 00:14:58]} {[%emt 00:00:02]} 4.
f4 {[%clk 00:15:16]} {[%emt 00:00:03]} a6 {[%clk 00:15:00]} {[%emt 00:00:02]} 5.
Nf3 {[%clk 00:15:17]} {[%emt 00:00:04]} b5 {[%clk 00:15:03]} {[%emt 00:00:02]}
6. a3 {[%clk 00:15:14]} {[%emt 00:00:09]} Nd7 {[%clk 00:14:53]} {[%emt
00:00:14]} 7. Bd3 {[%clk 00:14:51]} {[%emt 00:00:27]} c5 {[%clk 00:14:41]}
{[%emt 00:00:18]} 8. d5 {[%clk 00:14:33]} {[%emt 00:00:24]} c4 {[%clk
00:14:13]} {[%emt 00:00:32]} 9. Be2 {[%clk 00:14:32]} {[%emt 00:00:06]} Qb6
{[%clk 00:14:17]} {[%emt 00:00:02]} 10. Qd2 {[%clk 00:13:54]} {[%emt 00:00:42]}
Ngf6 {[%clk 00:14:02]} {[%emt 00:00:20]} 11. Qe3 {[%clk 00:13:36]} {[%emt
00:00:24]} Qc7 {[%clk 00:14:02]} {[%emt 00:00:04]} 12. h3 {[%clk 00:13:13]}
{[%emt 00:00:27]} Bb7 {[%clk 00:14:00]} {[%emt 00:00:08]} 13. O-O {[%clk
00:12:40]} {[%emt 00:00:38]} O-O {[%clk 00:14:01]} {[%emt 00:00:04]} 14. Nh2
{[%clk 00:12:07]} {[%emt 00:00:37]} e6 {[%clk 00:12:07]} {[%emt 00:02:00]} 15.
Bf3 {[%clk 00:10:56]} {[%emt 00:01:16]} exd5 {[%clk 00:11:46]} {[%emt
00:00:26]} 16. Nxd5 {[%clk 00:10:52]} {[%emt 00:00:09]} Nxd5 {[%clk 00:11:44]}
{[%emt 00:00:06]} 17. exd5 {[%clk 00:10:55]} {[%emt 00:00:03]} Rfe8 {[%clk
00:11:46]} {[%emt 00:00:04]} 18. Qf2 {[%clk 00:10:44]} {[%emt 00:00:16]} Nf6
{[%clk 00:11:12]} {[%emt 00:00:39]} 19. Rd1 {[%clk 00:10:36]} {[%emt 00:00:12]}
Ne4 {[%clk 00:11:13]} {[%emt 00:00:04]} 20. Bxe4 {[%clk 00:08:55]} {[%emt
00:01:46]} Rxe4 {[%clk 00:11:15]} {[%emt 00:00:03]} 21. c3 {[%clk 00:08:26]}
{[%emt 00:00:34]} Rae8 {[%clk 00:11:17]} {[%emt 00:00:03]} 22. f5 {[%clk
00:07:58]} {[%emt 00:00:33]} Re2 {[%clk 00:11:09]} {[%emt 00:00:13]} 23. Qg3
{[%clk 00:07:41]} {[%emt 00:00:23]} Qc5+ {[%clk 00:11:10]} {[%emt 00:00:04]} 24.
Kh1 {[%clk 00:07:04]} {[%emt 00:00:42]} Bxd5 {[%clk 00:11:12]} {[%emt
00:00:02]} 25. Nf3 {[%clk 00:06:45]} {[%emt 00:00:24]} Bxf3 {[%clk 00:11:07]}
{[%emt 00:00:10]} 26. Qxf3 {[%clk 00:06:06]} {[%emt 00:00:44]} Re1+ {[%clk
00:11:01]} {[%emt 00:00:10]} 27. Rxe1 {[%clk 00:05:34]} {[%emt 00:00:38]} Rxe1+
{[%clk 00:11:05]} {[%emt 00:00:02]} 28. Kh2 {[%clk 00:05:37]} {[%emt 00:00:01]}
Be5+ {[%clk 00:11:07]} {[%emt 00:00:02]} 29. g3 {[%clk 00:05:41]} {[%emt
00:00:02]} Qg1# {[%clk 00:11:11]} {[%emt 00:00:02]} 0-1

[Event "Open NK Rapid 2025"]
[Site "Helmond, Netherlands"]
[Date "2025.05.03"]
[Round "1.5"]
[White "Beerdsen, Thomas"]
[Black "Zhang, Xiheng"]
[Result "1-0"]
[TimeControl "15+5"]
[WhiteFideId "1030108"]
[BlackFideId "40102386"]
[WhiteElo "2485"]
[BlackElo "1778"]

1. e4 {[%clk 00:15:08]} {[%emt 00:00:01]} c5 {[%clk 00:15:09]} {[%emt
00:00:02]} 2. Nf3 {[%clk 00:15:11]} {[%emt 00:00:01]} e6 {[%clk 00:15:13]}
{[%emt 00:00:02]} 3. d4 {[%clk 00:15:14]} {[%emt 00:00:01]} cxd4 {[%clk
00:15:16]} {[%emt 00:00:02]} 4. Bg5 {[%clk 00:15:17]} {[%emt 00:00:01]} Be7
{[%clk 00:15:15]} {[%emt 00:00:07]} 5. Bxe7 {[%clk 00:15:19]} {[%emt 00:00:03]}
Nxe7 {[%clk 00:15:14]} {[%emt 00:00:06]} 6. Qxd4 {[%clk 00:15:20]} {[%emt
00:00:04]} O-O {[%clk 00:15:04]} {[%emt 00:00:15]} 7. Qd6 {[%clk 00:15:22]}
{[%emt 00:00:03]} Nbc6 {[%clk 00:14:36]} {[%emt 00:00:33]} 8. Nc3 {[%clk
00:15:24]} {[%emt 00:00:02]} Ng6 {[%clk 00:13:56]} {[%emt 00:00:45]} 9. O-O-O
{[%clk 00:15:22]} {[%emt 00:00:07]} a6 {[%clk 00:13:18]} {[%emt 00:00:44]} 10.
h4 {[%clk 00:15:20]} {[%emt 00:00:06]} Qf6 {[%clk 00:11:47]} {[%emt 00:01:36]}
11. Kb1 {[%clk 00:15:09]} {[%emt 00:00:17]} Nge5 {[%clk 00:11:06]} {[%emt
00:00:46]} 12. Nxe5 {[%clk 00:15:07]} {[%emt 00:00:07]} Qxe5 {[%clk 00:11:04]}
{[%emt 00:00:07]} 13. Qd2 {[%clk 00:15:05]} {[%emt 00:00:07]} b5 {[%clk
00:10:30]} {[%emt 00:00:39]} 14. f4 {[%clk 00:15:09]} {[%emt 00:00:02]} Qc7
{[%clk 00:10:01]} {[%emt 00:00:33]} 15. e5 {[%clk 00:15:11]} {[%emt 00:00:03]}
f6 {[%clk 00:09:30]} {[%emt 00:00:36]} 16. exf6 {[%clk 00:15:13]} {[%emt
00:00:03]} Rxf6 {[%clk 00:09:30]} {[%emt 00:00:05]} 17. g3 {[%clk 00:15:10]}
{[%emt 00:00:08]} b4 {[%emt 00:01:05]} 18. Ne4 {[%clk 00:15:12]} {[%emt
00:00:01]} Rf5 {[%clk 00:08:25]} {[%emt 00:00:12]} 19. Bd3 {[%clk 00:15:15]}
{[%emt 00:00:02]} h6 {[%clk 00:07:44]} {[%emt 00:00:47]} 20. h5 {[%clk
00:14:48]} {[%emt 00:00:32]} a5 {[%clk 00:07:32]} {[%emt 00:00:17]} 21. g4
{[%clk 00:14:44]} {[%emt 00:00:08]} Rxf4 {[%clk 00:06:51]} {[%emt 00:00:46]} 22.
g5 {[%clk 00:14:39]} {[%emt 00:00:10]} Ba6 {[%clk 00:06:20]} {[%emt 00:00:37]}
23. gxh6 {[%clk 00:13:56]} {[%emt 00:00:48]} Bxd3 {[%clk 00:06:08]} {[%emt
00:00:17]} 24. Qxd3 {[%clk 00:13:59]} {[%emt 00:00:02]} Ne5 {[%clk 00:05:46]}
{[%emt 00:00:27]} 25. Qe3 {[%clk 00:13:45]} {[%emt 00:00:17]} Nc4 {[%clk
00:05:38]} {[%emt 00:00:15]} 26. Qc5 {[%clk 00:13:02]} {[%emt 00:00:48]} Qxc5
{[%clk 00:05:16]} {[%emt 00:00:27]} 27. Nxc5 {[%clk 00:13:04]} {[%emt
00:00:02]} gxh6 {[%clk 00:04:56]} {[%emt 00:00:26]} 28. Rhg1+ {[%clk 00:12:11]}
{[%emt 00:00:57]} Kh8 {[%clk 00:04:39]} {[%emt 00:00:22]} 29. Rg6 {[%clk
00:12:08]} {[%emt 00:00:08]} Rf5 {[%clk 00:04:14]} {[%emt 00:00:31]} 30. Rxh6+
{[%clk 00:12:03]} {[%emt 00:00:09]} Kg7 {[%clk 00:04:09]} {[%emt 00:00:10]} 31.
Rg6+ {[%clk 00:12:06]} {[%emt 00:00:02]} Kh8 {[%clk 00:04:05]} {[%emt
00:00:09]} 32. Rdg1 {[%clk 00:11:58]} {[%emt 00:00:14]} Rxh5 {[%clk 00:03:59]}
{[%emt 00:00:11]} 33. Nxd7 {[%clk 00:12:00]} {[%emt 00:00:03]} Rd8 {[%clk
00:03:34]} {[%emt 00:00:29]} 34. Nf6 {[%clk 00:12:02]} {[%emt 00:00:03]} Rh4
{[%clk 00:03:23]} {[%emt 00:00:16]} 35. Rg8+ {[%clk 00:12:04]} {[%emt
00:00:03]} Rxg8 {[%clk 00:03:24]} {[%emt 00:00:05]} 36. Rxg8# {[%clk 00:12:07]}
1-0

[Event "Open NK Rapid 2025"]
[Site "Helmond, Netherlands"]
[Date "2025.05.03"]
[Round "1.6"]
[White "Lalkota, Sai Pranav Tejas"]
[Black "Dgebuadze, Alexandre"]
[Result "0-1"]
[TimeControl "15+5"]
[WhiteFideId "1087690"]
[BlackFideId "203882"]
[WhiteElo "1777"]
[BlackElo "2454"]

1. c4 {[%clk 00:15:09]} e6 {[%clk 00:15:08]} {[%emt 00:00:02]} 2. Nc3 {[%clk
00:15:11]} {[%emt 00:00:03]} Bb4 {[%clk 00:15:12]} {[%emt 00:00:02]} 3. g3
{[%clk 00:15:14]} {[%emt 00:00:01]} Nf6 {[%clk 00:15:09]} {[%emt 00:00:08]} 4.
Bg2 {[%clk 00:15:18]} {[%emt 00:00:01]} O-O {[%clk 00:15:11]} {[%emt 00:00:03]}
5. d3 {[%clk 00:15:20]} {[%emt 00:00:03]} d5 {[%clk 00:15:04]} {[%emt
00:00:13]} 6. cxd5 {[%clk 00:15:22]} {[%emt 00:00:03]} exd5 {[%clk 00:15:07]} 7.
Bd2 {[%clk 00:15:26]} {[%emt 00:00:01]} Re8 {[%clk 00:15:06]} {[%emt 00:00:07]}
8. Nf3 {[%clk 00:15:29]} {[%emt 00:00:02]} Bg4 {[%clk 00:15:06]} {[%emt
00:00:05]} 9. O-O {[%clk 00:15:31]} {[%emt 00:00:02]} Nc6 {[%clk 00:15:09]}
{[%emt 00:00:03]} 10. a3 {[%clk 00:15:34]} {[%emt 00:00:02]} Bd6 {[%clk
00:15:04]} {[%emt 00:00:10]} 11. Bg5 {[%clk 00:15:35]} {[%emt 00:00:03]} h6
{[%clk 00:14:45]} {[%emt 00:00:24]} 12. Bxf6 {[%clk 00:15:38]} {[%emt
00:00:03]} Qxf6 {[%clk 00:14:48]} {[%emt 00:00:02]} 13. Nxd5 {[%clk 00:15:31]}
{[%emt 00:00:12]} Qxb2 {[%clk 00:14:49]} {[%emt 00:00:04]} 14. Rb1 {[%clk
00:15:33]} {[%emt 00:00:02]} Qa2 {[%clk 00:14:15]} {[%emt 00:00:38]} 15. h3
{[%clk 00:15:11]} {[%emt 00:00:27]} Bxf3 {[%clk 00:14:09]} {[%emt 00:00:12]} 16.
Bxf3 {[%clk 00:15:15]} {[%emt 00:00:02]} Nd4 {[%clk 00:14:11]} {[%emt
00:00:03]} 17. e3 {[%clk 00:14:47]} {[%emt 00:00:32]} Nxf3+ {[%clk 00:13:58]}
{[%emt 00:00:18]} 18. Qxf3 {[%clk 00:14:50]} {[%emt 00:00:02]} b6 {[%clk
00:13:26]} {[%emt 00:00:37]} 19. Ra1 {[%clk 00:14:31]} {[%emt 00:00:24]} Qb2
{[%clk 00:13:14]} {[%emt 00:00:18]} 20. Rfb1 {[%clk 00:14:15]} {[%emt
00:00:21]} Qe5 {[%clk 00:13:13]} {[%emt 00:00:06]} 21. d4 {[%clk 00:14:07]}
{[%emt 00:00:13]} Qe6 {[%clk 00:13:16]} 22. Kg2 {[%clk 00:13:56]} {[%emt
00:00:16]} Rad8 {[%clk 00:12:56]} {[%emt 00:00:25]} 23. Rc1 {[%clk 00:13:49]}
{[%emt 00:00:13]} c5 {[%clk 00:12:46]} {[%emt 00:00:15]} 24. dxc5 {[%clk
00:13:29]} {[%emt 00:00:25]} bxc5 {[%clk 00:12:48]} {[%emt 00:00:03]} 25. Nf4
{[%clk 00:13:32]} {[%emt 00:00:02]} Qf6 {[%clk 00:12:12]} {[%emt 00:00:39]} 26.
Rc4 {[%clk 00:13:19]} {[%emt 00:00:19]} Qxa1 {[%clk 00:12:07]} {[%emt
00:00:10]} 27. Qg4 {[%clk 00:13:13]} {[%emt 00:00:10]} Bxf4 {[%clk 00:12:08]}
{[%emt 00:00:05]} 28. Rxf4 {[%clk 00:13:15]} {[%emt 00:00:03]} Qd1 {[%clk
00:12:03]} {[%emt 00:00:10]} 29. Qf5 {[%clk 00:13:13]} {[%emt 00:00:07]} Qd5+
{[%clk 00:12:05]} {[%emt 00:00:03]} 30. Qxd5 {[%clk 00:13:01]} {[%emt
00:00:17]} Rxd5 {[%clk 00:12:08]} {[%emt 00:00:02]} 31. Ra4 {[%clk 00:13:04]}
{[%emt 00:00:02]} Rc8 {[%clk 00:12:08]} {[%emt 00:00:05]} 32. Rc4 {[%clk
00:13:04]} {[%emt 00:00:06]} Rd3 {[%clk 00:12:08]} {[%emt 00:00:05]} 33. Kf3
{[%clk 00:13:06]} {[%emt 00:00:02]} Rxa3 {[%clk 00:12:11]} {[%emt 00:00:03]} 34.
Ke4 {[%clk 00:13:08]} {[%emt 00:00:02]} Ra1 {[%clk 00:12:10]} {[%emt 00:00:07]}
35. f4 {[%clk 00:13:08]} {[%emt 00:00:04]} a5 {[%clk 00:12:11]} {[%emt
00:00:04]} 36. Kd5 {[%clk 00:13:11]} {[%emt 00:00:02]} Rd1+ {[%clk 00:12:12]}
{[%emt 00:00:04]} 37. Ke4 {[%clk 00:13:14]} {[%emt 00:00:03]} a4 {[%clk
00:12:15]} {[%emt 00:00:02]} 38. Rxa4 {[%clk 00:13:17]} {[%emt 00:00:02]} c4
{[%clk 00:12:19]} 39. Ra3 {[%clk 00:13:20]} {[%emt 00:00:01]} c3 {[%clk
00:12:23]} 0-1